fUSD/lending_fUSD_20240409
["ID","MTS","AMOUNT","RATE_DAILY","PERIOD"]
[321995851,1712677834895,-500.0,0.00019178,2]
[321995852,1712677834904,-560.8,0.00019178,2]
[321995853,1712677834913,-500.0,0.00019178,2]
[321995854,1712677834922,-500.0,0.00019178,2]
[321995855,1712677834932,-500.0,0.00019178,2]
[321995856,1712677834941,-500.0,0.00019178,2]
[321995857,1712677834951,-500.0,0.00019178,2]
[321995858,1712677834960,-500.0,0.00019178,2]
[321995859,1712677834970,-500.0,0.00019178,2]
[321995860,1712677834979,-500.0,0.00019178,2]
[321995861,1712677834988,-588.93,0.00019178,2]
[321995862,1712677834998,-500.0,0.00019178,2]
[321995863,1712677835007,-500.0,0.00019178,2]
[321995864,1712677835016,-500.0,0.00019178,2]
[321995865,1712677835026,-500.0,0.00019178,2]
[321995866,1712677835036,-541.99,0.00019178,2]
[321995867,1712677835046,-500.0,0.00019178,2]
[321995868,1712677835057,-500.0,0.00019178,2]
[321995869,1712677835067,-500.0,0.00019178,2]
[321995870,1712677835078,-925.52,0.00019178,2]
[321995871,1712677835088,-500.0,0.00019178,2]
[321995872,1712677835097,-500.0,0.00019178,2]
[321995873,1712677835107,-500.0,0.00019178,2]
[321995874,1712677835118,-500.0,0.00019178,2]
[321995875,1712677835128,-500.0,0.00019178,2]
[321995876,1712677835137,-781.33,0.00019178,2]
[321995877,1712677835147,-500.0,0.00019178,2]
[321995878,1712677835156,-500.0,0.00019178,2]
[321995879,1712677835166,-549.63,0.00019178,2]
[321995880,1712677835176,-508.02301063,0.00019178,2]
[321995881,1712677835185,-500.0,0.00019178,2]
[321995882,1712677835197,-568.8,0.00019178,2]
[321995883,1712677835206,-500.0,0.00019178,2]
[321995884,1712677835216,-870.18,0.00019178,2]
[321995885,1712677835225,-500.0,0.00019178,2]
[321995886,1712677835234,-500.0,0.00019178,2]
[321995887,1712677835244,-500.0,0.00019178,2]
[321995888,1712677835254,-745.67,0.00019178,2]
[321995889,1712677835263,-500.0,0.00019178,2]
[321995890,1712677835273,-737.22,0.00019178,2]
[321995891,1712677835282,-530.22,0.00019178,2]
[321995892,1712677835292,-502.99,0.00019178,2]
[321995893,1712677835301,-500.0,0.00019178,2]
[321995894,1712677835311,-500.0,0.00019178,2]
[321995895,1712677835320,-518.36,0.00019178,2]
[321995896,1712677835331,-500.0,0.00019178,2]
[321995897,1712677835341,-500.0,0.00019178,2]
[321995898,1712677835351,-500.0,0.00019178,2]
[321995899,1712677835361,-500.0,0.00019178,2]
[321995900,1712677835371,-500.0,0.00019178,2]
[321995901,1712677835381,-815.66,0.00019178,2]
[321995902,1712677835392,-500.0,0.00019178,2]
[321995903,1712677835401,-500.0,0.00019178,2]
[321995904,1712677835411,-500.0,0.00019178,2]
[321995905,1712677835421,-500.0,0.00019178,2]
[321995906,1712677835430,-661.11,0.00019178,2]
[321995907,1712677835440,-500.0,0.00019178,2]
[321995908,1712677835449,-500.0,0.00019178,2]
[321995909,1712677835459,-500.0,0.00019178,2]
[321995910,1712677835468,-500.0,0.00019178,2]
[321995911,1712677835478,-500.0,0.00019178,2]
[321995912,1712677835487,-595.21,0.00019178,2]
[321995913,1712677835496,-507.26,0.00019178,2]
[321995914,1712677835506,-223.33,0.00019178,2]
[321995915,1712677835516,-501.15,0.00019178,2]
[321995916,1712677835525,-500.0,0.00019178,2]
[321995917,1712677835535,-1110.14,0.00019178,2]
[321995918,1712677835545,-500.0,0.00019178,2]
[321995919,1712677835554,-500.0,0.00019178,2]
[321995920,1712677835564,-500.0,0.00019178,2]
[321995921,1712677835573,-523.08,0.00019178,2]
[321995922,1712677835584,-500.0,0.00019178,2]
[321995923,1712677835593,-500.0,0.00019178,2]
[321995924,1712677835603,-500.0,0.00019178,2]
[321995925,1712677835612,-500.0,0.00019178,2]
[321995926,1712677835622,-552.12,0.00019178,2]
[321995927,1712677835631,-1242.18,0.00019178,2]
[321995928,1712677835641,-500.0,0.00019178,2]
[321995929,1712677835651,-500.0,0.00019178,2]
[321995930,1712677835660,-500.0,0.00019178,2]
[321995931,1712677835669,-500.0,0.00019178,2]
[321995932,1712677835679,-500.0,0.00019178,2]
[321995933,1712677835688,-639.11,0.00019178,2]
[321995934,1712677835698,-500.0,0.00019178,2]
[321995935,1712677835708,-500.0,0.00019178,2]
[321995936,1712677835718,-773.12,0.00019178,2]
[321995937,1712677835727,-623.49,0.00019178,2]
[321995938,1712677835737,-500.0,0.00019178,2]
[321995939,1712677835746,-3185.811,0.00019178,2]
[321995940,1712677835756,-1203.87,0.00019178,2]
[321995941,1712677835765,-500.0,0.00019178,2]
[321995942,1712677835775,-930.68,0.00019178,2]
[321995943,1712677835785,-500.0,0.00019178,2]
[321995944,1712677835794,-500.0,0.00019178,2]
[321995945,1712677835803,-500.0,0.00019178,2]
[321995946,1712677835813,-500.0,0.00019178,2]
[321995947,1712677835822,-500.0,0.00019178,2]
[321995948,1712677835833,-500.0,0.00019178,2]
[321995949,1712677835843,-500.0,0.00019178,2]
[321995950,1712677835854,-500.0,0.00019178,2]
[321995951,1712677835863,-500.0,0.00019178,2]
[321995952,1712677835875,-500.0,0.00019178,2]
[321995953,1712677835884,-636.68,0.00019178,2]
[321995954,1712677835893,-500.0,0.00019178,2]
[321995955,1712677835903,-500.0,0.00019178,2]
[321995956,1712677835912,-789.26,0.00019178,2]
[321995957,1712677835920,-500.0,0.00019178,2]
[321995958,1712677835930,-500.0,0.00019178,2]
[321995959,1712677835939,-561.38,0.00019178,2]
[321995960,1712677835949,-500.0,0.00019178,2]
[321995961,1712677835960,-621.99,0.00019178,2]
[321995962,1712677835969,-500.0,0.00019178,2]
[321995963,1712677835978,-500.0,0.00019178,2]
[321995964,1712677835988,-922.54,0.00019178,2]
[321995965,1712677835997,-506.17,0.00019178,2]
[321995966,1712677836007,-500.0,0.00019178,2]
[321995967,1712677836016,-500.0,0.00019178,2]
[321995968,1712677836026,-500.0,0.00019178,2]
[321995969,1712677836037,-500.0,0.00019178,2]
[321995970,1712677836047,-500.0,0.00019178,2]
[321995971,1712677836056,-500.0,0.00019178,2]
[321995972,1712677836065,-524.0,0.00019178,2]
[321995973,1712677836076,-595.95,0.00019178,2]
[321995974,1712677836086,-500.0,0.00019178,2]
[321995975,1712677836095,-822.18,0.00019178,2]
[321995976,1712677836104,-607.79,0.00019178,2]
[321995977,1712677836114,-500.0,0.00019178,2]
[321995978,1712677836123,-500.0,0.00019178,2]
[321995979,1712677836132,-500.0,0.00019178,2]
[321995980,1712677836142,-230.37,0.00019178,2]
[321995981,1712677836151,-500.0,0.00019178,2]
[321995982,1712677836161,-888.9,0.00019178,2]
[321995983,1712677836170,-531.74531428,0.00019178,2]
[321995984,1712677836180,-500.0,0.00019178,2]
[321995985,1712677836189,-500.0,0.00019178,2]
[321995986,1712677836200,-677.45,0.00019178,2]
[321995987,1712677836210,-846.07,0.00019178,2]
[321995988,1712677836219,-500.0,0.00019178,2]
[321995989,1712677836229,-500.0,0.00019178,2]
[321995990,1712677836239,-500.0,0.00019178,2]
[321995991,1712677836249,-500.0,0.00019178,2]
[321995992,1712677836259,-500.0,0.00019178,2]
[321995993,1712677836270,-500.0,0.00019178,2]
[321995994,1712677836280,-500.0,0.00019178,2]
[321995995,1712677836289,-500.0,0.00019178,2]
[321995996,1712677836299,-500.0,0.00019178,2]
[321995997,1712677836308,-500.0,0.00019178,2]
[321995998,1712677836318,-500.0,0.00019178,2]
[321995999,1712677836331,-500.0,0.00019178,2]
[321996000,1712677836340,-699.17,0.00019178,2]
[321996001,1712677836350,-500.0,0.00019178,2]
[321996002,1712677836361,-1860.48,0.00019178,2]
[321996003,1712677836371,-2810.8,0.00019178,2]
[321996004,1712677836381,-478.66575591,0.00019178,2]
[321996005,1712677836391,-630.54,0.00019178,2]
[321996006,1712677836401,-593.16,0.00019178,2]
[321996007,1712677836410,-500.0,0.00019178,2]
[321996008,1712677836421,-500.0,0.00019178,2]
[321996009,1712677836431,-764.14,0.00019178,2]
[321996010,1712677836440,-500.0,0.00019178,2]
[321996011,1712677836449,-500.0,0.00019178,2]
[321996012,1712677836459,-840.73,0.00019178,2]
[321996013,1712677836469,-500.0,0.00019178,2]
[321996014,1712677836479,-4442.18,0.00019178,2]
[321996015,1712677836489,-500.0,0.00019178,2]
[321996016,1712677836499,-500.0,0.00019178,2]
[321996017,1712677836509,-770.27,0.00019178,2]
[321996018,1712677836518,-1272.89,0.00019178,2]
[321996019,1712677836527,-736.99,0.00019178,2]
[321996020,1712677836537,-500.0,0.00019178,2]
[321996021,1712677836546,-500.0,0.00019178,2]
[321996022,1712677836555,-150.40797084,0.00019178,2]
[321996023,1712677836564,-2195.5,0.00019178,2]
[321996024,1712677836574,-500.0,0.00019178,2]
[321996025,1712677836589,-1268.58,0.00019178,2]
[321996026,1712677836598,-1117.47,0.00019178,2]
[321996027,1712677836607,-1800.49,0.00019178,2]
[321996028,1712677836616,-500.0,0.00019178,2]
[321996029,1712677836625,-500.0,0.00019178,2]
[321996030,1712677836634,-17320.59,0.00019178,2]
[321996031,1712677836643,-500.0,0.00019178,2]
[321996032,1712677836651,-3838.4,0.00019178,2]
[321996033,1712677836660,-1920.28,0.00019178,2]
[321996034,1712677836669,-961.22,0.00019178,2]
[321996035,1712677836678,-1875.27,0.00019178,2]
[321996036,1712677836687,-4367.41,0.00019178,2]
[321996037,1712677836696,-500.0,0.00019178,2]
[321996038,1712677836705,-724.03,0.00019178,2]
[321996039,1712677836714,-500.0,0.00019178,2]
[321996040,1712677836723,-155.33500449,0.00019178,2]
[321996041,1712677836733,-500.0,0.00019178,2]
[321996042,1712677836742,-2287.62,0.00019178,2]
[321996043,1712677836751,-803.48,0.00019178,2]
[321996044,1712677836760,-827.97,0.00019178,2]
[321996045,1712677836769,-604.18066109,0.00019178,2]
[321996046,1712677836779,-500.0,0.00019178,2]
[321996047,1712677836788,-500.0,0.00019178,2]
[321996048,1712677836797,-500.0,0.00019178,2]
[321996049,1712677836806,-516.28,0.00019178,2]
[321996050,1712677836815,-1073.06,0.00019178,2]
[321996051,1712677836824,-4279.59,0.00019178,2]
[321996052,1712677836836,-500.0,0.00019178,2]
[321996053,1712677836846,-363.58321092,0.00019178,2]
[321996054,1712677836855,-4140.31,0.00019178,2]
[321996055,1712677836866,-500.0,0.00019178,2]
[321996056,1712677836877,-500.0,0.00019178,2]
[321996057,1712677836886,-500.0,0.00019178,2]
[321996058,1712677836895,-500.0,0.00019178,2]
[321996059,1712677836904,-500.0,0.00019178,2]
[321996060,1712677836913,-500.0,0.00019178,2]
[321996061,1712677836922,-957.2,0.00019178,2]
[321996062,1712677836931,-500.0,0.00019178,2]
[321996063,1712677836941,-1339.55,0.00019178,2]
[321996064,1712677836950,-1505.0,0.00019178,2]
[321996065,1712677836960,-945.57,0.00019178,2]
[321996066,1712677836969,-639.28,0.00019178,2]
[321996067,1712677836978,-1522.9,0.00019178,2]
[321996068,1712677836987,-704.7,0.00019178,2]
[321996069,1712677836996,-500.0,0.00019178,2]
[321996070,1712677837005,-500.0,0.00019178,2]
[321996071,1712677837014,-1061.79,0.00019178,2]
[321996072,1712677837023,-559.03,0.00019178,2]
[321996073,1712677837032,-531.18,0.00019178,2]
[321996074,1712677837041,-618.07,0.00019178,2]
[321996075,1712677837050,-1967.42,0.00019178,2]
[321996076,1712677837059,-2171.04,0.00019178,2]
[321996077,1712677837068,-688.46,0.00019178,2]
[321996078,1712677837078,-500.0,0.00019178,2]
[321996079,1712677837087,-1343.13,0.00019178,2]
[321996080,1712677837097,-708.23,0.00019178,2]
[321996081,1712677837106,-500.0,0.00019178,2]
[321996082,1712677837115,-500.0,0.00019178,2]
[321996083,1712677837124,-500.0,0.00019178,2]
[321996084,1712677837133,-1665.88,0.00019178,2]
[321996085,1712677837143,-500.0,0.00019178,2]
[321996086,1712677837153,-2623.01,0.00019178,2]
[321996087,1712677837164,-1462.29,0.00019178,2]
[321996088,1712677837173,-1066.46,0.00019178,2]
[321996089,1712677837184,-500.0,0.00019178,2]
[321996090,1712677837194,-500.0,0.00019178,2]
[321996091,1712677837204,-692.53,0.00019178,2]
[321996092,1712677837214,-16092.85,0.00019178,2]
[321996093,1712677837224,-718.35,0.00019178,2]
[321996094,1712677837233,-500.0,0.00019178,2]
[321996095,1712677837243,-799.02,0.00019178,2]
[321996096,1712677837252,-504.12,0.00019178,2]
[321996097,1712677837262,-1794.66,0.00019178,2]
[321996098,1712677837271,-4662.6128338,0.00019178,2]
[321996118,1712677838022,-345.72,0.00019178,2]
[321996122,1712677838042,-247.3771662,0.00019178,2]
[321996125,1712677838053,-104.3528338,0.00019178,2]
[321996159,1712677838722,-1823.9371662,0.00019178,2]
[321996161,1712677838732,-6818.17466493,0.00019178,2]
[321996163,1712677838743,-316.62,0.00019178,2]
[321996165,1712677838755,-404.89884308,0.00019178,2]
[321996168,1712677838766,-766.29818179,0.00019178,2]
[321996170,1712677838777,-17523.9783102,0.00019178,2]
[321996172,1712677838786,-500.0,0.00019178,2]
[321996174,1712677838795,-1238.74,0.00019178,2]
[321996176,1712677838804,-1380.68,0.00019178,2]
[321996178,1712677838813,-43.79407161,0.00019178,2]
[321996180,1712677838824,-2790.41592839,0.00019178,2]
[321996182,1712677838834,-1917.29237979,0.00019178,2]
[321996184,1712677838849,-157.71762021,0.00019178,2]
[321996186,1712677838860,-500.0,0.00019178,2]
[321996188,1712677838869,-500.0,0.00019178,2]
[321996190,1712677838879,-2914.46,0.00019178,2]
[321996192,1712677838888,-920.56,0.00019178,2]
[321996194,1712677838899,-2734.94388978,0.00019178,2]
[321996197,1712677838910,-1078.80611022,0.00019178,2]
[321996199,1712677838919,-404.52,0.00019178,2]
[321996201,1712677838928,-246.16,0.00019178,2]
[321996202,1712677838937,-274.76188978,0.00019178,2]
[321996205,1712677838952,-225.23811022,0.00019178,2]
[321996207,1712677838961,-902.26,0.00019178,2]
[321996209,1712677838970,-919.26,0.00019178,2]
[321996211,1712677838979,-500.0,0.00019178,2]
[321996213,1712677838987,-500.0,0.00019178,2]
[321996215,1712677838996,-500.0,0.00019178,2]
[321996217,1712677839005,-1141.82,0.00019178,2]
[321996219,1712677839015,-7182.8,0.00019178,2]
[321996221,1712677839024,-500.0,0.00019178,2]
[321996223,1712677839033,-1415.29,0.00019178,2]
[321996225,1712677839044,-500.0,0.00019178,2]
[321996227,1712677839053,-500.0,0.00019178,2]
[321996229,1712677839062,-500.0,0.00019178,2]
[321996231,1712677839071,-500.0,0.00019178,2]
[321996232,1712677839081,-1570.4,0.00019178,2]
[321996234,1712677839090,-150.0,0.00019178,2]
[321996236,1712677839100,-306.57,0.00019178,2]
[321996238,1712677839109,-500.0,0.00019178,2]
[321996240,1712677839119,-2913.66,0.00019178,2]
[321996242,1712677839128,-810.3,0.00019178,2]
[321996244,1712677839137,-2602.86,0.00019178,2]
[321996246,1712677839146,-1144.55,0.00019178,2]
[321996248,1712677839155,-621.13,0.00019178,2]
[321996250,1712677839165,-1427.58,0.00019178,2]
[321996252,1712677839174,-500.0,0.00019178,2]
[321996254,1712677839183,-4067.13,0.00019178,2]
[321996256,1712677839192,-500.0,0.00019178,2]
[321996258,1712677839202,-606.82,0.00019178,2]
[321996261,1712677839211,-500.0,0.00019178,2]
[321996263,1712677839220,-1182.33188978,0.00019178,2]
[321996273,1712677839309,-179.25811022,0.00019178,2]
[321996275,1712677839319,-576.48,0.00019178,2]
[321996277,1712677839329,-500.0,0.00019178,2]
[321996279,1712677839338,-2374.88,0.00019178,2]
[321996281,1712677839347,-500.0,0.00019178,2]
[321996283,1712677839357,-1640.35,0.00019178,2]
[321996285,1712677839366,-3188.21,0.00019178,2]
[321996287,1712677839375,-500.0,0.00019178,2]
[321996289,1712677839384,-1486.96,0.00019178,2]
[321996291,1712677839393,-602.63,0.00019178,2]
[321996293,1712677839402,-1425.63,0.00019178,2]
[321996295,1712677839411,-500.0,0.00019178,2]
[321996297,1712677839421,-500.0,0.00019178,2]
[321996300,1712677839430,-500.0,0.00019178,2]
[321996303,1712677839439,-1444.88,0.00019178,2]
[321996305,1712677839448,-500.0,0.00019178,2]
[321996308,1712677839458,-3286.19,0.00019178,2]
[321996310,1712677839467,-500.0,0.00019178,2]
[321996312,1712677839476,-1028.61,0.00019178,2]
[321996314,1712677839485,-996.90927223,0.00019178,2]
[321996316,1712677839497,-889.01072777,0.00019178,2]
[321996318,1712677839506,-149.38263397,0.00019178,2]
[321996331,1712677839615,-419.6410628,0.00019178,2]
[321996376,1712677840119,-342.5366,0.00019178,2]
[321996378,1712677840130,-264.252,0.00019178,2]
[321996380,1712677840146,-370.99770323,0.00019178,2]
[321996382,1712677840155,-591.20620321,0.00019178,2]
[321996386,1712677840177,-351.16142009,0.00019178,2]
[321996388,1712677840192,-422.1423767,0.00019178,2]
[321996390,1712677840202,-500.0,0.00019178,2]
[321996392,1712677840211,-611.75,0.00019178,2]
[321996394,1712677840220,-500.0,0.00019178,2]
[321996396,1712677840230,-500.0,0.00019178,2]
[321996398,1712677840239,-860.94,0.00019178,2]
[321996400,1712677840248,-1444.0576233,0.00019178,2]
[321996599,1712677842743,-472.93999962,0.00019178,2]
[321996602,1712677842754,-1780.30237708,0.00019178,2]
[321996605,1712677842763,-2135.03,0.00019178,2]
[321996608,1712677842772,-1201.79,0.00019178,2]
[321996611,1712677842781,-500.0,0.00019178,2]
[321996613,1712677842791,-905.28,0.00019178,2]
[321996614,1712677842800,-283.99,0.00019178,2]
[321996615,1712677842990,-500.0,0.00019178,2]
[321996616,1712677843050,-1368.81,0.00019178,2]
[321996617,1712677843060,-500.0,0.00019178,2]
[321996618,1712677843069,-617.46,0.00019178,2]
[321996619,1712677843078,-8600.01,0.00019178,2]
[321996620,1712677843089,-6231.29,0.00019178,2]
[321996621,1712677843097,-500.0,0.00019178,2]
[321996622,1712677843106,-9537.23,0.00019178,2]
[321996623,1712677843115,-1350.87,0.00019178,2]
[321996624,1712677843124,-500.0,0.00019178,2]
[321996625,1712677843133,-500.0,0.00019178,2]
[321996626,1712677843143,-6811.06,0.00019178,2]
[321996627,1712677843152,-1417.76,0.00019178,2]
[321996628,1712677843162,-833.75,0.00019178,2]
[321996629,1712677843171,-500.0,0.00019178,2]
[321996630,1712677843181,-595.08,0.00019178,2]
[321996631,1712677843190,-961.95,0.00019178,2]
[321996632,1712677843200,-1929.14,0.00019178,2]
[321996633,1712677843210,-517.69,0.00019178,2]
[321996634,1712677843219,-567.88,0.00019178,2]
[321996635,1712677843229,-3237.16,0.00019178,2]
[321996636,1712677843239,-712.11,0.00019178,2]
[321996637,1712677843248,-732.63,0.00019178,2]
[321996638,1712677843257,-1339.3,0.00019178,2]
[321996639,1712677843266,-500.0,0.00019178,2]
[321996640,1712677843276,-7085.5,0.00019178,2]
[321996641,1712677843285,-3129.2,0.00019178,2]
[321996643,1712677843295,-1098.99,0.00019178,2]
[321996645,1712677843304,-84.45322564,0.00019178,2]
[321996648,1712677843320,-2890.0,0.00019178,2]
[321996658,1712677843403,-16612.04677436,0.00019178,2]
[321996660,1712677843412,-500.0,0.00019178,2]
[321996662,1712677843421,-1609.52,0.00019178,2]
[321996664,1712677843430,-1165.09,0.00019178,2]
[321996666,1712677843439,-1413.89,0.00019178,2]
[321996668,1712677843448,-578.16,0.00019178,2]
[321996670,1712677843457,-500.0,0.00019178,2]
[321996672,1712677843467,-1168.02,0.00019178,2]
[321996674,1712677843476,-692.75,0.00019178,2]
[321996676,1712677843485,-500.0,0.00019178,2]
[321996678,1712677843494,-2334.43,0.00019178,2]
[321996680,1712677843503,-899.23,0.00019178,2]
[321996682,1712677843512,-2762.24,0.00019178,2]
[321996684,1712677843521,-500.0,0.00019178,2]
[321996686,1712677843530,-603.83,0.00019178,2]
[321996688,1712677843539,-3096.25,0.00019178,2]
[321996690,1712677843548,-2664.1,0.00019178,2]
[321996692,1712677843557,-1990.94,0.00019178,2]
[321996694,1712677843566,-555.8,0.00019178,2]
[321996695,1712677843575,-1093.18,0.00019178,2]
[321996698,1712677843587,-1179.4,0.00019178,2]
[321996700,1712677843596,-500.0,0.00019178,2]
[321996702,1712677843605,-881.86,0.00019178,2]
[321996704,1712677843614,-500.0,0.00019178,2]
[321996705,1712677843623,-500.0,0.00019178,2]
[321996707,1712677843633,-947.0,0.00019178,2]
[321996709,1712677843642,-1220.33,0.00019178,2]
[321996711,1712677843651,-907.87,0.00019178,2]
[321996714,1712677843660,-500.0,0.00019178,2]
[321996715,1712677843669,-500.0,0.00019178,2]
[321996717,1712677843679,-1138.02,0.00019178,2]
[321996719,1712677843688,-1363.15,0.00019178,2]
[321996721,1712677843697,-500.0,0.00019178,2]
[321996723,1712677843707,-509.61,0.00019178,2]
[321996725,1712677843716,-500.0,0.00019178,2]
[321996727,1712677843725,-500.0,0.00019178,2]
[321996729,1712677843734,-500.0,0.00019178,2]
[321996731,1712677843744,-1161.13,0.00019178,2]
[321996733,1712677843753,-500.0,0.00019178,2]
[321996735,1712677843762,-160.90542103,0.00019178,2]
[321996736,1712677843772,-1819.81,0.00019178,2]
[321996737,1712677843781,-1692.76,0.00019178,2]
[321996738,1712677843790,-1162.69,0.00019178,2]
[321996739,1712677843800,-2166.57,0.00019178,2]
[321996740,1712677843809,-500.0,0.00019178,2]
[321996741,1712677843818,-500.0,0.00019178,2]
[321996742,1712677843828,-508.30965984,0.00019178,2]
[321996743,1712677843838,-816.3,0.00019178,2]
[321996744,1712677843848,-500.0,0.00019178,2]
[321996745,1712677843857,-1959.16,0.00019178,2]
[321996746,1712677843869,-500.0,0.00019178,2]
[321996747,1712677843879,-227.15,0.00019178,2]
[321996748,1712677843889,-543.47,0.00019178,2]
[321996749,1712677843898,-3331.39,0.00019178,2]
[321996750,1712677843907,-604.59,0.00019178,2]
[321996751,1712677843917,-500.0,0.00019178,2]
[321996752,1712677843926,-500.0,0.00019178,2]
[321996753,1712677843936,-6320.04,0.00019178,2]
[321996754,1712677843946,-500.0,0.00019178,2]
[321996755,1712677843955,-1745.7,0.00019178,2]
[321996756,1712677843965,-500.0,0.00019178,2]
[321996757,1712677843974,-500.0,0.00019178,2]
[321996758,1712677843983,-500.0,0.00019178,2]
[321996759,1712677843993,-296.83152133,0.00019178,2]
[321996760,1712677844002,-1219.85,0.00019178,2]
[321996761,1712677844011,-500.0,0.00019178,2]
[321996762,1712677844020,-537.43,0.00019178,2]
[321996763,1712677844030,-500.0,0.00019178,2]
[321996764,1712677844039,-578.006976,0.00019178,2]
[321996765,1712677844049,-162.74,0.0001918,2]
[321996766,1712677844058,-315.77797662,0.00019253,2]
[321996767,1712677844067,-7156.55816818,0.0001928,2]
[321996768,1712677844076,-3288.63470116,0.0001928,2]
[321996769,1712677844088,-158.78563687,0.00019348,2]
[321996770,1712677844097,-172.21661089,0.00019349,2]
[321996771,1712677844107,-5445.95362886,0.00019349,2]
[321996772,1712677844116,-174.51172719,0.00019349,2]
[321996773,1712677844126,-185.64350062,0.00019349,2]
[321996774,1712677844135,-2053.09490804,0.00019352,2]
[321996775,1712677844144,-678.02638206,0.00019383,2]
[321996776,1712677844153,-1472.0,0.000194,2]
[321996777,1712677844163,-499.99,0.000194,2]
[321996778,1712677844172,-191.47834,0.0001943,2]
[321996779,1712677844181,-1733.42787081,0.00019447,2]
[321996780,1712677844190,-175.03336532,0.00019447,2]
[321996781,1712677844200,-280.00718862,0.00019447,2]
[321996782,1712677844210,-1907.13004437,0.00019447,2]
[321996783,1712677844219,-500.0,0.00019447,2]
[321996784,1712677844228,-491.40588618,0.00019447,2]
[321996785,1712677844237,-532.91680819,0.00019447,2]
[321996786,1712677844247,-550.38240893,0.00019447,2]
[321996787,1712677844257,-905.85508822,0.00019447,2]
[321996788,1712677844266,-4411.11780804,0.00019447,2]
[321996789,1712677844276,-155.4585308,0.00019448,2]
[321996790,1712677844286,-1057.50232524,0.00019448,2]
[321996791,1712677844296,-422.58923138,0.00019448,2]
[321996792,1712677844305,-23283.26082031,0.00019448,2]
[321996793,1712677844315,-2156.90904818,0.00019448,2]
[321996794,1712677844325,-4749.85463134,0.00019448,2]
[321996795,1712677844337,-414.86169245,0.00019448,2]
[321996796,1712677844346,-229.15697636,0.00019449,2]
[321996797,1712677844355,-5306.41006997,0.00019449,2]
[321996798,1712677844367,-1090.36758682,0.00019449,2]
[321996799,1712677844398,-345.40944,0.00019449,2]
[321996800,1712677844433,-6974.4,0.00019449,2]
[321996801,1712677844453,-2693.68,0.00019178,2]
[321996802,1712677844463,-30569.65488796,0.00019449,2]
[321996803,1712677844607,-500.0,0.00019178,2]
[321996804,1712677844617,-5471.93977321,0.00019449,2]
[321996805,1712677844629,-4576.4563783,0.00019449,2]
[321996806,1712677844640,-1327.26960186,0.00019449,2]
[321996807,1712677844651,-9989.06159995,0.00019449,2]
[321996828,1712677845870,-1107.85,0.00018866,2]
[321996829,1712677845880,-500.0,0.00019178,2]
[321996830,1712677845892,-648.47,0.00019178,2]
[321996831,1712677845903,-500.0,0.00019178,2]
[321996832,1712677845912,-773.17234396,0.00019449,2]
[321996833,1712677845924,-352.45873146,0.00019449,2]
[321996834,1712677845938,-11968.32320475,0.00019449,2]
[321996835,1712677846246,-29245.872147,0.00019449,2]
[321996841,1712677891089,35999.99999901,0.00032552,30]
[321996842,1712678014980,3493.57,0.00018522,5]
[321996852,1712678153250,448.66,0.00016414,2]
[321996855,1712678185672,173.67,0.00027373,120]
[321996856,1712678264725,250.0,0.0001796,2]